bitfinex/quotes_ETHUSD_20241019
["timestamp","ask_amount","ask_price","bid_price","bid_amount"]
[1729357853465,0.83046621,2639.8,2639.5,0.55]
[1729357854348,0.7748,2639.8,2639.5,0.55]
[1729357854552,0.7748,2639.8,2639.6,0.16037232]
[1729357854731,0.7748,2639.8,2639.5,0.55]
[1729357854933,0.7748,2639.8,2639.6,0.16037349]
[1729357855129,0.7748,2639.8,2639.5,1.34420965]
[1729357855329,0.7748,2639.8,2639.6,0.16037059]
[1729357855667,0.7748,2639.8,2639.7,0.16037059]
[1729357855877,0.7748,2639.8,2639.5,1.60082371]
[1729357855878,0.7748,2639.8,2639.5,1.34420965]
[1729357856169,0.7748,2639.8,2639.6,0.16037428]
[1729357856344,0.7748,2639.8,2639.5,1.34420965]
[1729357856530,0.7748,2639.8,2639.6,0.16038004]
[1729357856836,0.7748,2639.8,2639.5,1.34420965]
[1729357857037,0.7748,2639.8,2639.6,0.16038224]
[1729357857224,0.7748,2639.8,2639.6,0.79420965]
[1729357858263,0.7748,2639.8,2639.5,1.34420965]
[1729357858430,0.05566621,2639.7,2639.6,0.95460121]
[1729357858622,0.7748,2639.8,2639.6,0.16039156]
[1729357858828,0.7748,2639.8,2639.5,1.34420965]
[1729357859077,0.7748,2639.8,2639.6,0.95460449]
[1729357859275,0.7748,2639.8,2639.6,0.79420965]
[1729357859476,0.7748,2639.8,2639.5,1.34420965]
[1729357859668,0.7748,2639.8,2639.6,0.9546143]
[1729357859867,0.7748,2639.8,2639.6,0.79420965]
[1729357860064,0.7748,2639.8,2639.5,1.34420965]
[1729357860273,0.7748,2639.8,2639.6,0.16041506]
[1729357860457,4.18417,2639.8,2639.6,0.79420965]
[1729357860780,0.05566621,2639.7,2639.5,1.34420965]
[1729357860941,0.05566621,2639.7,2639.6,0.16031823]
[1729357861566,0.83046621,2639.8,2639.6,0.16031823]
[1729357861889,4.23983621,2639.8,2639.5,1.34420965]
[1729357862060,4.23983621,2639.8,2639.6,0.16033113]
[1729357862258,4.23983621,2639.8,2639.5,1.34420965]
[1729357862467,4.23983621,2639.8,2639.6,0.16034512]
[1729357862674,4.23983621,2639.8,2639.5,1.34420965]
[1729357862878,4.23983621,2639.8,2639.6,0.16034915]
[1729357863058,4.23983621,2639.8,2639.5,1.34420965]
[1729357863384,4.23983621,2639.8,2639.6,0.16036601]
[1729357863557,4.18417,2639.8,2639.5,1.34420965]
[1729357863757,4.18417,2639.8,2639.6,0.16036589]
[1729357863960,4.18417,2639.8,2639.5,1.34420965]
[1729357864183,4.18417,2639.8,2639.6,0.16036415]
[1729357864388,3.40947,2639.7,2639.5,1.34420965]
[1729357864591,3.40947,2639.7,2639.6,0.16039108]
[1729357864940,3.46513621,2639.7,2639.6,0.16039108]
[1729357867488,3.40947,2639.7,2639.6,0.16039108]
[1729357867791,3.46513621,2639.7,2639.6,0.16039108]
[1729357867997,3.40947,2639.7,2639.6,0.16039108]
[1729357868212,3.46513621,2639.7,2639.6,0.16039108]
[1729357869090,3.46513621,2639.7,2639.6,0.16055559]
[1729357870294,3.46513621,2639.7,2639.6,0.41754687]
[1729357871238,3.40947,2639.7,2639.5,1.34420965]
[1729357871536,3.40947,2639.7,2639.6,0.41761471]
[1729357872210,3.40947,2639.7,2639.6,0.1606124]
[1729357873599,4.07147541,2639.7,2639.6,0.1606124]
[1729357873826,4.12714162,2639.7,2639.6,0.1606124]
[1729357874349,4.92734162,2639.7,2639.6,0.1606124]
[1729357874553,4.92734162,2639.7,2639.3,1.19131448]
[1729357874554,0.71767162,2639.7,2639.3,0.79420965]
[1729357874859,0.71767162,2639.7,2639.2,0.79420965]
[1729357874860,3.40999,2639.3,2639.2,0.79420965]
[1729357875011,3.46565621,2639.3,2639.2,1.21182082]
[1729357875406,4.26585621,2639.3,2639.2,1.21182082]
[1729357875612,5.03342783,2639.3,2639.2,0.16061104]
[1729357876658,3.41025,2639.1,2639.0,0.79420965]
[1729357876858,0.05566621,2639.1,2639.0,0.95467578]
[1729357877051,3.82232316,2639.6,2639.1,0.55]
[1729357877052,0.8002,2639.5,2639.1,0.55]
[1729357877229,0.05566621,2639.4,2639.2,1.21101085]
[1729357877567,0.05566621,2639.4,2639.3,0.16046613]
[1729357878343,0.05566621,2639.4,2639.3,0.16045566]
[1729357881368,0.05566621,2639.4,2639.1,0.55]
[1729357881369,3.89215983,2639.4,2639.1,0.7937744]
[1729357881674,3.89215983,2639.4,2639.0,0.7937744]
[1729357881850,3.89215983,2639.4,2639.1,0.16040369]
[1729357882049,3.89215983,2639.4,2639.0,1.05044142]
[1729357882365,3.89215983,2639.4,2639.1,0.95417465]
[1729357882366,0.05566621,2639.4,2639.1,0.95417465]
[1729357882565,0.05566621,2639.4,2639.2,0.16040025]
[1729357882764,0.05566621,2639.6,2639.2,0.9465744]
[1729357882964,0.05566621,2639.6,2639.3,0.16037093]
[1729357883173,0.05566621,2639.6,2639.3,0.55]
[1729357883351,0.05566621,2639.6,2639.3,1.3437744]
[1729357883774,0.05566621,2639.6,2639.4,0.16037353]
[1729357883938,0.05566621,2639.8,2639.5,0.1603654]
[1729357884142,0.05566621,2639.8,2639.5,0.55]
[1729357884369,0.05566621,2639.8,2639.5,1.3437744]
[1729357884637,0.83216621,2639.9,2639.6,0.95413571]
[1729357884862,0.83216621,2639.9,2639.5,1.3437744]
[1729357885062,0.83216621,2639.9,2639.6,0.16036378]
[1729357885276,0.83216621,2639.9,2639.5,1.3437744]
[1729357885485,0.83216621,2639.9,2639.6,0.1603787]
[1729357885728,0.83216621,2639.9,2639.5,1.3437744]
[1729357885879,0.05566621,2639.9,2639.5,1.3437744]
[1729357886076,0.05566621,2639.9,2639.7,0.55]
[1729357886283,0.05566621,2640.0,2639.7,0.55]
[1729357886715,0.05566621,2640.0,2639.7,1.3437744]
[1729357887524,0.05566621,2640.0,2639.7,0.55]
[1729357887721,0.7765,2640.1,2639.7,0.55]
[1729357888025,0.05566621,2640.0,2639.7,1.3437744]
[1729357888233,0.05566621,2640.1,2639.7,1.3437744]
[1729357889220,0.05566621,2640.2,2639.7,1.3437744]
[1729357892647,3.46452621,2640.2,2639.7,0.55]
[1729357892832,4.22950183,2640.2,2639.7,0.55]
[1729357895831,4.22950183,2640.2,2639.7,1.3437744]
[1729357896138,3.46452621,2640.2,2639.7,1.3437744]
[1729357896955,3.46452621,2640.2,2639.7,0.55]
[1729357898055,3.46452621,2640.2,2639.7,0.7028]
[1729357900439,0.7765,2639.9,2639.6,0.7937744]
[1729357900644,0.83216621,2639.9,2639.6,0.7937744]
[1729357901129,0.83216621,2639.9,2639.5,0.7937744]
[1729357901340,0.83216621,2639.9,2639.6,0.95409533]
[1729357901548,0.83216621,2639.9,2639.6,0.7937744]
[1729357902064,1.25629283,2639.9,2639.6,0.55]
[1729357903365,0.05566621,2639.9,2639.6,1.3437744]
[1729357903571,3.46476621,2640.0,2639.6,0.55]
[1729357903732,0.05566621,2640.0,2639.6,1.3437744]
[1729357904356,0.05566621,2640.0,2639.6,0.55]
[1729357904544,0.05566621,2640.0,2639.6,1.3437744]
[1729357907656,3.46476621,2640.0,2639.6,1.3437744]
[1729357907862,4.23510383,2640.0,2639.6,1.3437744]
[1729357908073,4.23901,2639.9,2639.6,1.3437744]
[1729357908247,3.46503621,2639.8,2639.5,0.7937744]
[1729357908453,0.05566621,2639.8,2639.5,0.7937744]
[1729357909254,0.90306859,2639.8,2639.5,0.7937744]
[1729357911384,0.90306859,2639.8,2639.6,0.16074869]
[1729357911578,0.90306859,2639.8,2639.5,0.7937744]
[1729357911876,0.8297,2639.9,2639.6,0.16074718]
[1729357912089,0.05566621,2639.8,2639.5,0.7937744]
[1729357912395,0.88536621,2639.9,2639.6,1.50452536]
[1729357912569,0.88536621,2639.9,2639.7,0.16075096]
[1729357912895,0.88536621,2639.9,2639.6,0.55]
[1729357913394,0.88536621,2639.9,2639.7,0.16081055]
[1729357913566,0.88536621,2639.9,2639.6,1.3437744]
[1729357913767,0.88536621,2639.9,2639.7,0.16083582]
[1729357913969,0.88536621,2639.9,2639.6,1.3437744]
[1729357914169,0.88536621,2639.9,2639.7,0.1608346]
[1729357914381,0.88536621,2639.9,2639.6,1.3437744]
[1729357914582,0.88536621,2639.9,2639.7,0.16084283]
[1729357914803,0.88536621,2639.9,2639.6,0.55]
[1729357914950,0.88536621,2639.9,2639.7,0.16084438]
[1729357915150,0.88536621,2639.9,2639.6,0.55]
[1729357915151,0.88536621,2639.9,2639.6,1.3437744]
[1729357915481,5.06499983,2639.9,2639.6,0.55]
[1729357916379,5.06499983,2639.9,2639.5,1.3437744]
[1729357916380,1.65572983,2639.9,2639.5,1.3437744]
[1729357916586,5.06504983,2639.9,2639.4,0.7937744]
[1729357916891,5.06504983,2639.9,2639.5,0.16085001]
[1729357917055,5.06504983,2639.9,2639.4,0.7937744]
[1729357917383,0.84741498,2639.8,2639.5,0.16085353]
[1729357917567,0.05566621,2639.7,2639.4,0.7937744]
[1729357917770,0.05566621,2639.7,2639.5,0.16083856]
[1729357918070,0.05566621,2639.7,2639.4,0.7937744]
[1729357918283,0.05566621,2639.7,2639.5,0.16083409]
[1729357918455,0.05566621,2639.7,2639.4,0.7937744]
[1729357918793,0.05566621,2639.7,2639.5,0.16082284]
[1729357918956,0.05566621,2639.7,2639.4,0.7937744]
[1729357919155,0.05566621,2639.7,2639.5,0.16081637]
[1729357919403,0.05566621,2639.8,2639.6,0.16081637]
[1729357919703,0.82604483,2639.8,2639.4,0.7937744]
[1729357919902,0.05566621,2639.8,2639.5,0.16081305]
[1729357920059,0.05566621,2639.8,2639.6,0.16081305]
[1729357920396,6.87444621,2639.8,2639.4,0.7937744]
[1729357920552,3.46502621,2639.8,2639.5,0.16081819]
[1729357920749,3.46502621,2639.8,2639.4,0.7937744]
[1729357920955,3.4096,2639.6,2639.5,0.16082218]
[1729357921188,0.7703,2639.5,2639.2,0.7937744]
[1729357921485,0.05566621,2639.4,2639.3,0.16082525]
[1729357923795,0.05566621,2639.4,2639.3,0.16073824]
[1729357923991,0.05566621,2639.4,2639.1,0.7937744]
[1729357924156,0.82596621,2639.5,2639.2,0.95451403]
[1729357924358,0.82596621,2639.5,2639.3,0.16073963]
[1729357924555,0.82596621,2639.5,2639.3,0.7937744]
[1729357925297,0.05566621,2639.4,2639.3,0.7937744]
[1729357925459,0.05566621,2639.4,2639.3,0.95449093]
[1729357926663,0.05566621,2639.4,2639.3,0.16071653]
[1729357927289,0.05566621,2639.4,2639.3,0.16070563]
[1729357927494,0.05566621,2639.4,2639.3,0.95448003]
[1729357928081,0.82596621,2639.5,2639.3,0.95448003]
[1729357928281,0.82596621,2639.5,2639.2,0.7937744]
[1729357928523,0.82596621,2639.5,2639.1,1.19066161]
[1729357928524,0.82596621,2639.5,2639.3,0.95448254]
[1729357928838,0.82596621,2639.5,2639.3,0.7937744]
[1729357929321,0.05566621,2639.4,2639.1,1.19066161]
[1729357929527,0.05566621,2639.4,2639.2,0.16071316]
[1729357929674,0.05566621,2639.4,2638.4,0.64065836]
[1729357929879,0.05566621,2639.4,2638.9,0.9678739]
[1729357930106,0.05566621,2639.4,2639.1,0.55]
[1729357930320,0.05566621,2639.4,2639.2,0.16071336]
[1729357930522,0.05566621,2639.4,2639.3,0.16071336]
[1729357932598,0.05566621,2639.4,2639.2,0.79431207]
[1729357932926,0.05566621,2639.4,2639.3,0.16071812]
[1729357933094,0.05566621,2639.4,2639.3,0.16071655]
[1729357933296,3.40927,2639.9,2639.4,0.55]
[1729357933297,0.05566621,2639.6,2639.4,0.55]
[1729357933623,0.8177,2639.8,2639.4,0.55]
[1729357933624,0.05566621,2639.7,2639.4,0.55]
[1729357933924,0.05566621,2639.7,2639.5,0.16072612]
[1729357934095,0.05566621,2639.7,2639.4,0.55]
[1729357934296,0.05566621,2639.7,2639.5,0.16072209]
[1729357934503,0.05566621,2639.7,2639.4,0.55]
[1729357935243,0.05566621,2639.7,2639.5,0.16073386]
[1729357935539,0.05566621,2639.7,2639.4,0.55]
[1729357935745,0.05566621,2639.7,2639.5,0.16073531]
[1729357936036,0.05566621,2639.7,2639.5,0.79431207]
[1729357936411,0.05566621,2639.7,2639.6,0.16075012]
[1729357938933,0.05566621,2639.9,2639.6,0.16075012]
[1729357939133,0.05566621,2639.9,2639.5,0.79431207]
[1729357939311,0.05566621,2639.9,2639.6,0.16075408]
[1729357939721,0.05566621,2639.9,2639.5,0.79431207]
[1729357939918,0.05566621,2639.9,2639.6,0.16075015]
[1729357940143,0.05566621,2639.9,2639.5,0.79431207]
[1729357940323,0.05566621,2639.9,2639.6,0.16075162]
[1729357940523,0.05566621,2639.9,2639.5,0.79431207]
[1729357940847,0.05566621,2639.9,2639.6,0.16074674]
[1729357941008,0.05566621,2639.9,2639.6,0.79431207]
[1729357941207,0.05566621,2639.9,2639.5,0.79431207]
[1729357941444,0.05566621,2639.9,2639.6,0.16074486]
[1729357941647,0.05566621,2639.9,2639.5,0.79431207]
[1729357941814,0.05566621,2639.9,2639.6,0.16074502]
[1729357942010,0.05566621,2639.9,2639.5,0.79431207]
[1729357942216,0.05566621,2639.9,2639.6,0.16074523]
[1729357942516,0.05566621,2639.9,2639.5,0.79431207]
[1729357942714,0.05566621,2639.9,2639.6,0.16074933]
[1729357942935,0.05566621,2639.9,2639.5,0.79431207]
[1729357943111,0.05566621,2639.9,2639.6,0.16075498]
[1729357943312,0.8123,2639.8,2639.5,0.79431207]
[1729357943549,0.05566621,2639.7,2639.6,0.16075271]
[1729357944250,0.05566621,2639.7,2639.5,0.79431207]
[1729357944441,0.05566621,2639.7,2639.6,0.16075926]
[1729357946752,0.05566621,2639.7,2639.6,0.95507133]
[1729357947048,0.86796621,2639.8,2639.5,0.79431207]
[1729357947359,0.8123,2639.8,2639.6,0.95506844]
[1729357947554,0.05566621,2640.0,2639.6,0.79431207]
[1729357948857,0.86796621,2640.4,2639.8,0.79431207]
[1729357949027,0.86796621,2640.4,2639.9,0.55]
[1729357949864,0.86796621,2640.4,2639.9,1.34431207]
[1729357950359,0.86796621,2640.4,2639.9,0.55]
[1729357950725,10.718,2640.9,2639.9,0.55]
[1729357950726,0.86796621,2640.6,2640.1,0.55]
[1729357950927,4.27628621,2640.6,2640.1,0.55]
[1729357951964,3.40852,2640.5,2639.9,0.79431207]
[1729357952264,0.05566621,2640.4,2639.9,0.55]
[1729357952675,0.05566621,2640.4,2639.8,0.94711207]
[1729357952676,0.8123,2640.3,2639.8,0.79431207]
[1729357952965,3.89215183,2640.2,2639.8,0.55]
[1729357953122,3.89215183,2640.2,2639.7,0.79431207]
[1729357953123,3.89215183,2640.2,2639.7,0.55]
[1729357954042,0.8123,2640.1,2639.7,0.55]
[1729357954255,0.05566621,2640.0,2639.7,0.55]
[1729357955330,0.8123,2640.1,2639.7,0.55]
[1729357955331,0.86796621,2640.1,2639.7,1.34431207]
[1729357955559,0.05566621,2640.2,2639.7,1.63887125]
[1729357956639,0.86796621,2640.3,2639.7,1.63887125]
[1729357958582,0.86796621,2640.3,2639.9,0.55]
[1729357958859,0.8123,2640.3,2639.9,0.55]
[1729357959597,0.05566621,2640.2,2639.9,0.55]
[1729357960084,3.4084,2640.6,2639.9,0.55]
[1729357960085,0.86796621,2640.5,2639.9,0.55]
[1729357960395,0.86796621,2640.5,2639.9,1.64262601]
[1729357962069,0.86796621,2640.5,2640.1,0.55]
[1729357986743,0.8123,2640.5,2640.3,0.55]
[1729357987102,0.8123,2640.5,2640.1,0.55]
[1729357987320,0.8123,2640.5,2640.3,0.55]
[1729357988005,0.8123,2640.5,2640.1,0.55]
[1729357988212,0.8123,2640.5,2640.3,0.55]
[1729357988429,0.8123,2640.5,2640.1,0.84868941]
[1729357988628,0.8123,2640.5,2640.3,0.55]
[1729357988937,0.8123,2640.5,2640.1,0.84868941]
[1729357989242,0.8123,2640.5,2640.3,0.55]
[1729357989398,0.8123,2640.5,2640.2,0.55]
[1729357992136,0.8123,2640.5,2640.4,0.55]
[1729357992720,0.8123,2640.5,2640.2,0.55]
[1729357992917,0.8123,2640.5,2640.4,0.55]
[1729357993426,0.8123,2640.5,2640.2,0.55]
[1729357993613,0.7814,2640.7,2640.4,0.55]
[1729357993815,0.7814,2640.7,2640.2,0.55]
[1729357994014,0.7814,2640.7,2640.4,0.55]
[1729357994320,0.7814,2640.7,2640.2,1.64303903]
[1729357994516,0.7814,2640.7,2640.4,0.55]
[1729357994926,0.7814,2640.7,2640.3,0.55]
[1729357995327,0.7814,2640.7,2640.2,0.55]
[1729357995545,0.7814,2640.7,2640.2,0.84872696]
[1729357995883,0.7814,2640.7,2640.2,1.64303903]
[1729357996015,0.7814,2640.7,2640.4,0.55]
[1729357996218,0.7814,2640.7,2640.3,0.55]
[1729358000636,0.7814,2640.7,2640.3,0.7028]
[1729358000831,0.7814,2640.7,2640.3,1.49711207]
[1729358001361,0.7814,2640.7,2640.5,0.55]
[1729358002688,0.7814,2640.7,2640.4,0.29873071]
[1729358002689,0.7814,2640.7,2640.4,0.55]
[1729358002891,0.7814,2640.7,2640.3,0.79431207]
[1729358002892,0.8153,2640.5,2640.3,0.55]
[1729358003181,0.8153,2640.5,2640.2,0.55]
[1729358006289,0.87096621,2640.4,2640.1,0.55]
[1729358006500,0.87096621,2640.4,2640.0,0.55]
[1729358006646,0.87096621,2640.4,2640.0,1.34431207]
[1729358008447,0.87096621,2640.4,2640.0,0.55]
[1729358009186,0.87096621,2640.4,2640.0,1.34431207]
[1729358009391,0.87096621,2640.4,2640.0,0.55]
[1729358012208,0.8153,2640.4,2640.0,0.55]
[1729358014895,0.8153,2640.4,2640.0,1.34431207]
[1729358015309,0.8153,2640.4,2640.0,0.55]
[1729358019529,0.8153,2640.4,2640.0,1.34431207]
[1729358021026,0.8153,2640.4,2640.0,0.55]
[1729358021609,0.05566621,2640.3,2640.0,0.55]
[1729358022132,0.8153,2640.2,2640.0,0.55]
[1729358028449,0.8153,2640.2,2640.0,0.80357802]
[1729358033011,0.8153,2640.2,2640.0,0.55]
[1729358033415,0.8153,2640.2,2639.9,0.55]
[1729358033635,0.8153,2640.2,2640.0,0.1609044]
[1729358033954,0.8153,2640.2,2639.9,0.55]
[1729358034098,0.8153,2640.2,2640.1,0.55]
[1729358034644,0.8153,2640.2,2640.0,0.55]
[1729358035802,0.7993,2640.5,2640.1,0.16092259]
[1729358036032,0.7993,2640.5,2640.2,0.55]
[1729358036238,0.7993,2640.5,2640.1,0.55]
[1729358036444,0.7993,2640.5,2640.1,0.81885802]
[1729358037949,0.05566621,2640.4,2640.1,0.81885802]
[1729358038617,0.05566621,2640.4,2640.1,0.55]
[1729358039020,0.05566621,2640.4,2640.0,0.55]
[1729358039910,0.05566621,2640.4,2640.2,0.55]
[1729358040106,0.05566621,2640.4,2640.0,0.55]
[1729358046409,0.05566621,2640.4,2640.0,1.34431207]
[1729358046746,0.05566621,2640.4,2640.0,0.55]
[1729358047343,0.05566621,2640.4,2640.0,1.34431207]
[1729358047910,0.7534,2640.3,2640.0,1.34431207]
[1729358057314,0.7534,2640.3,2640.0,1.7567525]
[1729358069202,0.7534,2640.3,2640.2,0.55]
[1729358069412,0.7534,2640.3,2640.0,1.7567525]
[1729358069719,0.7534,2640.3,2640.2,0.55]
[1729358069882,0.7534,2640.3,2640.0,1.2067525]
[1729358070087,0.7534,2640.3,2640.1,0.95799142]
[1729358070289,0.7534,2640.3,2640.1,0.79702527]
[1729358070931,1.36106316,2640.5,2640.1,0.79702527]
[1729358071144,0.05566621,2640.4,2640.1,0.55]
[1729358071451,1.36106316,2640.5,2640.1,0.55]
[1729358071624,1.41672937,2640.5,2640.1,0.55]
[1729358075156,1.36106316,2640.5,2640.1,0.55]
[1729358077222,0.05566621,2640.4,2640.1,0.55]
[1729358077560,0.05566621,2640.4,2640.1,1.34431207]
[1729358078354,1.41672937,2640.5,2640.1,1.34431207]
[1729358079416,1.36106316,2640.5,2640.1,1.34431207]
[1729358079622,0.05566621,2640.4,2640.1,1.34431207]
[1729358080045,1.36106316,2640.5,2640.1,1.34431207]
[1729358080861,1.41672937,2640.5,2640.1,1.34431207]
[1729358081203,1.36106316,2640.5,2640.1,1.34431207]
[1729358082293,1.27616316,2640.5,2640.1,1.34431207]
[1729358082499,0.7684,2640.5,2640.1,1.34431207]
[1729358082882,0.05566621,2640.4,2640.1,1.34431207]
[1729358083399,0.7684,2640.5,2640.1,1.34431207]
[1729358083617,0.05566621,2640.4,2640.1,1.34431207]
[1729358083756,0.7684,2640.5,2640.1,1.34431207]
[1729358083961,0.82406621,2640.5,2640.1,1.34431207]
[1729358086505,0.82406621,2640.5,2640.1,0.55]
[1729358087491,0.82406621,2640.5,2640.1,1.34431207]
[1729358087696,0.7684,2640.5,2640.1,1.34431207]
[1729358088393,0.82406621,2640.5,2640.1,1.34431207]
[1729358090186,0.7684,2640.5,2640.1,1.34431207]
[1729358091426,4.00077243,2640.8,2640.1,1.6964901]
[1729358091427,1.41956243,2640.8,2640.1,1.6964901]
[1729358091725,0.05566621,2640.7,2640.1,1.62074516]
[1729358100833,3.46384621,2640.7,2640.1,1.62074516]
[1729358101162,3.46384621,2640.7,2640.1,1.34431207]
[1729358101456,0.05566621,2640.7,2640.1,1.34431207]
[1729358101600,0.05566621,2640.7,2640.2,0.1528]
[1729358102045,0.05566621,2640.7,2640.3,0.55]
[1729358105675,0.05566621,2640.7,2640.0,1.1914681]
[1729358105676,3.4087,2640.3,2640.0,0.79431207]
[1729358105966,3.0,2641.1,2639.8,0.79431207]
[1729358105967,3.40905,2640.1,2639.8,0.79431207]
[1729358106166,3.46476621,2640.0,2639.7,0.79431207]
[1729358106562,3.46476621,2640.0,2639.6,1.1914681]
[1729358106563,0.7579,2639.9,2639.6,0.79431207]
[1729358106909,0.05566621,2639.8,2639.6,0.79431207]
[1729358107113,0.05566621,2639.8,2639.5,1.1914681]
[1729358107114,3.46502621,2639.8,2639.5,0.79431207]
[1729358107416,0.05566621,2639.8,2639.4,0.79431207]
[1729358107639,3.46501621,2639.8,2639.4,0.79431207]
[1729358109440,3.46501621,2639.8,2639.3,0.79431207]
[1729358109647,3.46501621,2639.8,2639.4,1.50494895]
[1729358109846,0.05566621,2639.8,2639.4,1.34431207]
[1729358110766,0.05566621,2639.8,2639.4,0.55]
[1729358113544,0.05566621,2639.8,2639.3,0.55]
[1729358113723,0.7579,2639.7,2639.3,0.55]
[1729358113927,0.05566621,2639.6,2639.3,0.55]
[1729358114258,0.05566621,2639.6,2639.3,0.88290665]
[1729358114434,0.81356621,2639.7,2639.3,0.88290665]
[1729358114628,0.81356621,2639.7,2639.2,0.79431207]
[1729358114842,0.7579,2639.5,2639.1,0.79431207]
[1729358115062,0.05566621,2639.4,2639.1,0.79431207]
[1729358115264,0.05566621,2639.4,2639.0,0.94711207]
[1729358115923,0.7579,2639.5,2639.0,0.94711207]
[1729358116141,0.7579,2639.5,2639.1,0.21385802]
[1729358116565,0.05566621,2639.4,2639.1,0.21385802]
[1729358116918,0.7579,2639.5,2639.1,0.21385802]
[1729358117318,0.7579,2639.5,2639.0,0.94711207]
[1729358117319,0.05566621,2639.4,2639.0,0.94711207]
[1729358117521,0.81356621,2639.5,2639.0,0.94711207]
[1729358118422,0.81356621,2639.5,2639.0,1.10750495]
[1729358118621,0.81356621,2639.5,2639.0,0.13152642]
[1729358118861,0.7579,2639.5,2639.0,0.2919193]
[1729358119066,0.7579,2639.5,2639.0,1.08623137]
[1729358119238,0.7579,2639.5,2639.0,0.92583849]
[1729358119565,0.81356621,2639.4,2638.7,0.79431207]
[1729358119721,0.7579,2639.2,2638.8,0.55]
[1729358119927,0.7579,2639.2,2638.8,0.71037692]
[1729358120122,0.7579,2639.2,2638.8,0.55]
[1729358121567,0.81356621,2639.4,2638.9,0.1315]
[1729358121861,3.40952,2639.7,2639.0,0.55]
[1729358121862,0.81356621,2639.6,2639.0,0.55]
[1729358122359,0.05566621,2639.6,2639.0,0.71031399]
[1729358122563,0.7579,2639.8,2639.2,0.55]
[1729358122969,0.05566621,2639.7,2639.2,0.55]
[1729358123454,0.81356621,2639.8,2639.2,0.55]
[1729358124765,0.82706621,2640.0,2639.2,0.71031725]
[1729358124968,0.82706621,2640.0,2639.2,0.99307699]
[1729358125167,4.23619621,2640.0,2639.2,0.99307699]
[1729358125868,3.40924,2639.9,2639.2,0.99307699]
[1729358126071,0.05566621,2639.8,2639.2,0.99309843]
[1729358126777,0.05566621,2639.8,2639.2,0.99311559]
[1729358126956,0.05566621,2639.8,2639.2,0.83275974]
[1729358129467,0.05566621,2639.8,2639.3,0.16043558]
[1729358129785,0.05566621,2639.8,2639.2,0.83275974]
[1729358129949,0.05566621,2639.8,2639.4,0.55]
[1729358130158,0.05566621,2639.8,2639.2,0.83275974]
[1729358130359,0.05566621,2639.8,2639.4,0.55]
[1729358130702,0.05566621,2639.8,2639.3,0.55]
[1729358131054,0.05566621,2639.9,2639.3,0.55]
[1729358133170,0.05566621,2639.9,2639.4,0.16057067]
[1729358133367,0.05566621,2639.9,2639.3,0.55]
[1729358133567,0.05566621,2639.9,2639.4,0.16057052]
[1729358133792,0.05566621,2639.9,2639.3,0.55]
[1729358134038,0.05566621,2639.9,2639.4,0.16056894]
[1729358134195,0.7714,2639.8,2639.4,0.16056894]
[1729358134536,0.05566621,2639.7,2639.2,0.80704297]
[1729358134715,0.82706621,2639.8,2639.4,0.55]
[1729358135106,0.82706621,2639.8,2639.5,0.16070385]
[1729358135294,0.82706621,2639.8,2639.3,0.55]
[1729358135496,0.7714,2639.8,2639.5,0.55]
[1729358135800,0.82706621,2640.0,2639.5,0.1315]
[1729358135998,0.82706621,2640.0,2639.6,0.71070433]
[1729358136326,0.05566621,2640.0,2639.6,0.55]
[1729358136541,0.7714,2640.0,2639.8,0.55]
[1729358136845,0.7714,2640.0,2639.6,0.55]
[1729358136989,0.7714,2640.0,2639.8,0.55]
[1729358137190,0.7714,2640.0,2639.6,0.55]
[1729358137436,0.7714,2640.0,2639.8,0.55]
[1729358137996,0.7714,2640.0,2639.6,0.55]
[1729358138196,0.7714,2640.0,2639.8,0.55]
[1729358138436,0.7714,2640.0,2639.6,0.55]
[1729358138597,0.7714,2640.0,2639.8,0.55]
[1729358138931,0.7714,2640.0,2639.6,0.55]
[1729358139108,0.7714,2640.0,2639.8,0.55]
[1729358139434,0.7714,2640.0,2639.5,1.05130463]
[1729358139594,0.7714,2640.0,2639.6,0.16061047]
[1729358139794,0.7714,2640.0,2639.5,0.23742727]
[1729358139993,0.7714,2640.0,2639.6,0.16061928]
[1729358140217,0.7714,2640.0,2639.5,0.23742727]
[1729358140423,0.7714,2640.0,2639.6,0.16059619]
[1729358140625,0.7714,2640.0,2639.5,0.23742727]
[1729358140934,0.7714,2640.0,2639.7,0.55]
[1729358141137,0.7714,2640.0,2639.6,0.55]
[1729358141925,0.7714,2640.0,2639.6,0.5971172]
[1729358142263,0.7714,2640.0,2639.6,0.55]
[1729358143764,0.7562,2640.2,2639.8,0.55]
[1729358147076,0.7562,2640.9,2639.9,0.1315]
[1729358147238,0.05566621,2640.8,2640.0,0.71046629]
[1729358147440,0.7562,2640.7,2640.0,0.55]
[1729358151577,0.7562,2640.7,2640.2,0.55]
[1729358163874,0.7613,2641.0,2640.4,0.55]
[1729358164106,0.05566621,2640.9,2640.4,0.55]
[1729358168217,0.7613,2641.0,2640.4,0.55]
[1729358168615,0.7613,2641.0,2640.6,0.55]
[1729358169018,0.05566621,2641.3,2640.6,0.55]
[1729358169019,0.7613,2641.2,2640.6,0.55]
[1729358169231,0.05566621,2641.1,2640.6,0.55]
[1729358171697,0.7613,2641.4,2640.8,0.55]
[1729358171877,0.7613,2641.6,2641.0,0.55]
[1729358172088,0.81696621,2641.6,2641.0,0.55]
[1729358172392,0.7613,2641.6,2641.0,0.55]
[1729358178769,0.7613,2641.8,2641.1,0.1315]
[1729358178954,0.7613,2641.8,2641.3,0.1315]
[1729358179160,0.7613,2641.8,2641.4,0.55]
[1729358179962,0.81696621,2642.0,2641.4,0.55]
[1729358180495,0.7613,2642.0,2641.5,0.1315]
[1729358180704,0.7613,2642.0,2641.6,0.55]
[1729358181260,0.05566621,2642.3,2641.6,0.55]
[1729358181967,3.4065,2642.1,2641.6,0.55]
[1729358182169,4.22353621,2642.0,2641.4,0.55]
[1729358182383,0.7613,2641.8,2641.4,0.55]
[1729358184893,0.81696621,2641.8,2641.4,0.55]
[1729358185196,0.7613,2641.8,2641.4,0.55]
[1729358187105,0.05566621,2642.0,2641.4,0.55]
[1729358190419,3.46217621,2642.0,2641.4,0.55]
[1729358190622,0.76959662,2641.9,2641.4,0.55]
[1729358193018,0.05566621,2642.0,2641.4,0.55]
[1729358193431,0.8274,2642.1,2641.6,0.55]
[1729358193589,0.88306621,2642.1,2641.6,0.55]